Workbook

Sheet K12
A1: What financial changes has the library made in response to the crisis?
B2: COUNT | C2: PERCENTAGE | D2: COUNT | E2: PERCENTAGE
A3: Benefits | B3: To Date | C3: To Date | D3: Anticipated (thru May 2021) | E3: Anticipated (thru May 2021)
A4: Eliminated | C4: =B4/$B$11 -> 0 | D4: 2 | E4: =D4/$D$11 -> 0.0206185567
A5: Significant reduction | B5: 1 | C5: =B5/$B$11 -> 0.01176470588 | D5: 5 | E5: =D5/$D$11 -> 0.05154639175
A6: Some reduction | B6: 2 | C6: 0.02352941176 | D6: 7 | E6: 0.07216494845
A7: No major change | B7: 81 | C7: 0.9529411765 | D7: 83 | E7: 0.8556701031
A8: Some increase | B8: 1 | C8: 0.01176470588 | E8: 0
A9: Significant increase | C9: 0 | E9: 0
A10: Allocated new funding | C10: 0 | E10: 0
A11: Grand Total | B11: 85 | D11: 97
A15: Salaries | B15: To Date | C15: To Date | D15: Anticipated (thru May 2021) | E15: Anticipated (thru May 2021)
A16: Eliminated | C16: =B16/$B$23 -> 0 | D16: 1 | E16: =D16/$D$23 -> 0.009803921569
A17: Significant reduction | B17: 1 | C17: =B17/$B$23 -> 0.01086956522 | D17: 4 | E17: =D17/$D$23 -> 0.03921568627
A18: Some reduction | B18: 2 | C18: 0.02173913043 | D18: 9 | E18: 0.08823529412
A19: No major change | B19: 88 | C19: 0.9565217391 | D19: 86 | E19: 0.8431372549
A20: Some increase | B20: 1 | C20: 0.01086956522 | D20: 2 | E20: 0.01960784314
A21: Significant increase | C21: 0 | E21: 0
A22: Allocated new funding | C22: 0 | E22: 0
A23: Grand Total | B23: 92 | D23: 102
A27: Planned hiring | B27: To Date | C27: To Date | D27: Anticipated (thru May 2021) | E27: Anticipated (thru May 2021)
A28: Eliminated | B28: 12 | C28: =B28/$B$35 -> 0.1411764706 | D28: 10 | E28: =D28/$D$35 -> 0.1234567901
A29: Significant reduction | B29: 2 | C29: =B29/$B$35 -> 0.02352941176 | D29: 3 | E29: =D29/$D$35 -> 0.03703703704
A30: Some reduction | B30: 7 | C30: 0.08235294118 | D30: 2 | E30: 0.02469135802
A31: No major change | B31: 64 | C31: 0.7529411765 | D31: 65 | E31: 0.8024691358
A32: Some increase | C32: 0 | D32: 1 | E32: 0.01234567901
A33: Significant increase | C33: 0 | E33: 0
A34: Allocated new funding | C34: 0 | E34: 0
A35: Grand Total | B35: 85 | D35: 81
A39: Print collection budget | B39: To Date | C39: To Date | D39: Anticipated (thru May 2021) | E39: Anticipated (thru May 2021)
A40: Eliminated | B40: 4 | C40: =B40/$B$47 -> 0.03883495146 | D40: 3 | E40: =D40/$D$47 -> 0.02521008403
A41: Significant reduction | B41: 7 | C41: =B41/$B$47 -> 0.06796116505 | D41: 22 | E41: =D41/$D$47 -> 0.1848739496
A42: Some reduction | B42: 21 | C42: 0.2038834951 | D42: 40 | E42: 0.3361344538
A43: No major change | B43: 65 | C43: 0.6310679612 | D43: 46 | E43: 0.3865546218
A44: Some increase | B44: 6 | C44: 0.05825242718 | D44: 6 | E44: 0.05042016807
A45: Significant increase | C45: 0 | D45: 1 | E45: 0.008403361345
A46: Allocated new funding | C46: 0 | D46: 1 | E46: 0.008403361345
A47: Grand Total | B47: 103 | D47: 119
A51: Professional Development Budget | B51: To Date | C51: To Date | D51: Anticipated (thru May 2021) | E51: Anticipated (thru May 2021)
A52: Eliminated | B52: 4 | C52: =B52/$B$59 -> 0.04395604396 | D52: 5 | E52: =D52/$D$59 -> 0.04807692308
A53: Significant reduction | B53: 2 | C53: =B53/$B$59 -> 0.02197802198 | D53: 11 | E53: =D53/$D$59 -> 0.1057692308
A54: Some reduction | B54: 11 | C54: 0.1208791209 | D54: 25 | E54: 0.2403846154
A55: No major change | B55: 69 | C55: 0.7582417582 | D55: 50 | E55: 0.4807692308
A56: Some increase | B56: 5 | C56: 0.05494505495 | D56: 12 | E56: 0.1153846154
A57: Significant increase | C57: 0 | E57: 0
A58: Allocated new funding | C58: 0 | D58: 1 | E58: 0.009615384615
A59: Grand Total | B59: 91 | D59: 104
A63: Programs | B63: To Date | C63: To Date | D63: Anticipated (thru May 2021) | E63: Anticipated (thru May 2021)
A64: Eliminated | B64: 3 | C64: =B64/$B$71 -> 0.03125 | D64: 3 | E64: =D64/$D$71 -> 0.02678571429
A65: Significant reduction | B65: 8 | C65: =B65/$B$71 -> 0.08333333333 | D65: 17 | E65: =D65/$D$71 -> 0.1517857143
A66: Some reduction | B66: 18 | C66: 0.1875 | D66: 24 | E66: 0.2142857143
A67: No major change | B67: 62 | C67: 0.6458333333 | D67: 54 | E67: 0.4821428571
A68: Some increase | B68: 5 | C68: 0.05208333333 | D68: 11 | E68: 0.09821428571
A69: Significant increase | C69: 0 | D69: 1 | E69: 0.008928571429
A70: Allocated new funding | C70: 0 | D70: 2 | E70: 0.01785714286
A71: Grand Total | B71: 96 | D71: 112
A75: Resuming Operations | B75: To Date | C75: To Date | D75: Anticipated (thru May 2021) | E75: Anticipated (thru May 2021)
A76: Eliminated | B76: 3 | C76: =B76/$B$83 -> 0.03703703704 | E76: =D76/$D$83 -> 0
A77: Significant reduction | B77: 13 | C77: =B77/$B$83 -> 0.1604938272 | D77: 13 | E77: =D77/$D$83 -> 0.1326530612
A78: Some reduction | B78: 8 | C78: 0.0987654321 | D78: 27 | E78: 0.2755102041
A79: No major change | B79: 56 | C79: 0.6913580247 | D79: 49 | E79: 0.5
A80: Some increase | B80: 1 | C80: 0.01234567901 | D80: 8 | E80: 0.08163265306
A81: Significant increase | C81: 0 | D81: 1 | E81: 0.01020408163
A82: Allocated new funding | C82: 0 | E82: 0
A83: Grand Total | B83: 81 | D83: 98
A87: Services | B87: To Date | C87: To Date | D87: Anticipated (thru May 2021) | E87: Anticipated (thru May 2021)
A88: Eliminated | B88: 3 | C88: =B88/$B$95 -> 0.03157894737 | E88: =D88/$D$95 -> 0
A89: Significant reduction | B89: 18 | C89: =B89/$B$95 -> 0.1894736842 | D89: 11 | E89: =D89/$D$95 -> 0.1047619048
A90: Some reduction | B90: 6 | C90: 0.06315789474 | D90: 28 | E90: 0.2666666667
A91: No major change | B91: 64 | C91: 0.6736842105 | D91: 57 | E91: 0.5428571429
A92: Some increase | B92: 4 | C92: 0.04210526316 | D92: 9 | E92: 0.08571428571
A93: Significant increase | C93: 0 | E93: 0
A94: Allocated new funding | C94: 0 | E94: 0
A95: Grand Total | B95: 95 | D95: 105
A99: Staffing | B99: To Date | C99: To Date | D99: Anticipated (thru May 2021) | E99: Anticipated (thru May 2021)
A100: Eliminated | B100: 3 | C100: =B100/$B$107 -> 0.0303030303 | D100: 2 | E100: =D100/$D$107 -> 0.01923076923
A101: Significant reduction | B101: 7 | C101: =B101/$B$107 -> 0.07070707071 | D101: 8 | E101: =D101/$D$107 -> 0.07692307692
A102: Some reduction | B102: 2 | C102: 0.0202020202 | D102: 18 | E102: 0.1730769231
A103: No major change | B103: 86 | C103: 0.8686868687 | D103: 76 | E103: 0.7307692308
A104: Some increase | B104: 1 | C104: 0.0101010101 | E104: 0
A105: Significant increase | C105: 0 | E105: 0
A106: Allocated new funding | C106: 0 | E106: 0
A107: Grand Total | B107: 99 | D107: 104
